fUSD/lending_fUSD_20260301
["ID","MTS","AMOUNT","RATE_DAILY","PERIOD"]
[406968650,1772375431909,-500.0,0.0001207,2]
[406968652,1772375431918,-500.0,0.0001207,2]
[406968654,1772375431929,-193.35422505,0.0001207,2]
[406968656,1772375431938,-2649.2,0.00012681,2]
[406968658,1772375431951,-500.0,0.00013479,2]
[406968660,1772375431961,-500.0,0.00013836,2]
[406968662,1772375431971,-500.0,0.00014107,2]
[406968664,1772375431981,-519.0,0.0001411,2]
[406968666,1772375431991,-939.01,0.00014146,2]
[406968668,1772375432001,-1600.0,0.0001419,2]
[406968670,1772375432011,-2360.28,0.00014193,2]
[406968672,1772375432021,-1000.0,0.0001425,2]
[406968674,1772375432030,-331.36472516,0.00014467,2]
[406968676,1772375432040,-606.34696803,0.00014467,2]
[406968678,1772375432050,-199.12030604,0.00014467,2]
[406968680,1772375432060,-151.95157194,0.00014546,2]
[406968682,1772375432070,-151.0,0.00014553,2]
[406968684,1772375432079,-41443.23936118,0.00014556,2]
[406968687,1772375432100,-77485.95890048,0.00014556,2]
[406968690,1772375432111,-19586.69960387,0.00014556,2]
[406968706,1772375438025,-301.76454383,0.00014556,2]
[406968731,1772375438574,-583.72885539,0.00014467,2]
[406968733,1772375438586,-925.48761476,0.00014467,2]
[406968764,1772375440369,-384.97926712,0.00014467,2]
[406968771,1772375443088,-451.1400963,0.00014467,2]
[406968772,1772375443147,-615.0164598,0.00014467,2]
[406968780,1772375445781,-720.65285003,0.00014467,2]
[406968781,1772375445791,-0.91524,0.00014556,2]
[406968784,1772375446366,-1854.34371756,0.00014556,2]
[406968785,1772375446379,-6699.40183421,0.00014556,2]
[406968812,1772376616169,167.7,0.00012,30]
[406968818,1772376632048,-1640.85,0.00011507,2]
[406968819,1772376632058,-259.15,0.00012,2]
[406968820,1772376632070,-6.37216531,0.00012,2]
[406968821,1772376632080,-166.66,0.00012963,2]
[406968822,1772376632089,-240.37134569,0.000131,10]
[406968823,1772376632101,-624.35787928,0.000131,10]
[406968824,1772376632113,-510.78051524,0.000131,10]
[406968826,1772376632124,-722.19025979,0.000131,10]
[406968827,1772376632135,-166.66,0.00013236,2]
[406968828,1772376632147,-140.13697114,0.00013239,2]
[406968829,1772376632158,-212.33865509,0.00013239,2]
[406968830,1772376632167,-200.0,0.00013499,2]
[406968831,1772376632181,-166.66,0.00013509,2]
[406968832,1772376632191,-1373.66259507,0.00013515,2]
[406968833,1772376632203,-126.33740493,0.00013515,2]
[406968834,1772376632215,-217.26,0.00013716,2]
[406968835,1772376632225,-162.41,0.00013742,2]
[406968836,1772376632235,-166.66,0.00013782,2]
[406968837,1772376632244,-1549.46350591,0.0001381,2]
[406968838,1772376632255,-7105.38649409,0.0001381,2]
[406968839,1772376632264,-1852.42,0.00014045,2]
[406968840,1772376632274,-166.66,0.00014054,2]
[406968841,1772376632283,-519.0,0.0001411,2]
[406968842,1772376632292,-1385.91163067,0.0001425,2]
[406968843,1772376632302,-166.66,0.00014327,2]
[406968844,1772376632312,-151.95157194,0.00014356,2]
[406968845,1772376632321,-545.71227129,0.00014356,2]
[406968846,1772376632331,-151.0,0.00014363,2]
[406968847,1772376632340,-636.67755659,0.00014365,2]
[406968848,1772376632349,-1513.80760615,0.00014366,2]
[406968849,1772376632364,-3197.1583477,0.00014366,2]
[406968850,1772376632379,-474.12914604,0.00014366,2]
[406968852,1772376632391,-2701.61761818,0.00014366,2]
[406968855,1772376632413,-56243.27437328,0.00014366,2]
[406968857,1772376632425,-46116.403677,0.00014366,2]
[406968858,1772376632435,-82961.10203137,0.00014366,2]
[406968859,1772376632446,-4434.76220405,0.00014366,2]
[406968860,1772376632457,-1000.0,0.00014366,2]
[406968861,1772376632468,-395.36243364,0.00014366,2]
[406968864,1772376638305,-822.83,0.00014366,2]
[406968866,1772376640534,-17527.0,0.00014366,2]
[406968867,1772376640604,-2385.31666582,0.00014366,2]
[406968868,1772376640674,-6947.05478971,0.00014366,2]
[406968869,1772376640686,-4783.16358,0.00014366,2]
[406968870,1772376640697,-616.0,0.00014366,2]
[406968896,1772376645866,-267658.28425543,0.00014366,2]
[406968898,1772376645963,-2396.49828,0.00014366,2]
[406968900,1772376645989,-987.61314542,0.00014366,2]
[406968901,1772376646053,-1697.18831677,0.00014366,2]
[406968902,1772376646115,-3294.268,0.00014366,2]
[406968904,1772376930494,440.1,0.0001707,120]
[406968920,1772377549275,161.3,6.611e-05,2]
[406968922,1772377710215,320.0,0.0001711,120]
[406968923,1772377719651,320.0,0.0001711,120]
[406968933,1772377832212,-770.33557959,0.000119,2]
[406968942,1772377832290,-544.02,0.000119,2]
[406968944,1772377832368,-121.08442041,0.000119,2]
[406968945,1772377832378,-138.11557959,0.00013059,2]
[406968946,1772377832390,-823.641,0.00013059,2]
[406968953,1772377838305,-38.24342041,0.00013059,2]
[406968954,1772377838315,-161.3,0.00013223,2]
[406968955,1772377838326,-1600.0,0.00013294,2]
[406968956,1772377838336,-2809.53,0.00013316,2]
[406968957,1772377838346,-1069.0,0.00013395,2]
[406968958,1772377838355,-300.0,0.00013396,2]
[406968959,1772377838364,-4000.0,0.00013397,2]
[406968960,1772377838374,-3240.0,0.00013425,2]
[406968961,1772377838384,-1500.0,0.000136,4]
[406968962,1772377838393,-244.09261149,0.000137,2]
[406968963,1772377838403,-953.41329657,0.000137,5]
[406968964,1772377838427,-2046.58670343,0.000137,5]
[406968965,1772377838437,-500.0,0.000137,2]
[406968966,1772377838447,-500.0,0.000137,2]
[406968967,1772377838459,-500.0,0.000137,2]
[406968968,1772377838468,-500.0,0.000137,2]
[406968969,1772377838478,-520.55026084,0.000137,2]
[406968970,1772377838487,-4000.0,0.00013732,2]
[406968971,1772377838497,-4500.0,0.000138,5]
[406968972,1772377838506,-166.66,0.00013844,2]
[406968973,1772377838516,-409.0,0.00013863,2]
[406968974,1772377838526,-150.0,0.00013866,2]
[406968975,1772377838539,-824.0,0.00013867,2]
[406968976,1772377838549,-32891.4421,0.00013867,2]
[406968977,1772377838559,-388.75869274,0.00013867,2]
[406968978,1772377838569,-7850.4776584,0.00013867,2]
[406968979,1772377838578,-6000.0,0.000139,5]
[406968980,1772377838588,-544.0,0.00013945,2]
[406968981,1772377838597,-151.0,0.00013964,2]
[406968983,1772377838606,-1265.5977928,0.00013967,2]
[406968984,1772377838617,-932.44184216,0.00013967,2]
[406968993,1772377840875,-211.697426,0.00013045,2]
[406968994,1772377840884,-7728.96036504,0.00013967,2]
[406968995,1772377840894,-154905.93151716,0.00013967,2]
[406968996,1772377840942,-6587.80290899,0.00013967,2]
[406968997,1772377840954,-4042.45014242,0.00013967,2]
[406968998,1772377840977,-716067.41468944,0.00013967,2]
[406969041,1772377843435,-858.87950471,0.00013967,2]
[406969042,1772377843451,-2562.76208955,0.00013967,2]
[406969044,1772377846265,-1290.88419414,0.00013967,2]
[406969045,1772377846327,-89649.9999995,0.00013967,2]
[406969046,1772377846559,-324.89115,0.00013967,2]
[406969047,1772377846570,-310.25882034,0.00013967,2]
[406969048,1772377846621,-2129.39662644,0.00013967,2]
[406969059,1772379031572,-166.66,0.00012204,2]
[406969060,1772379031582,-273.646581,0.00012455,2]
[406969061,1772379031592,-166.66,0.00012461,2]
[406969062,1772379031604,-1500.0,0.000125,2]
[406969063,1772379031614,-217.11483199,0.00012582,2]
[406969064,1772379031624,-45.14085925,0.00012683,2]
[406969065,1772379031636,-626.10704283,0.00012683,2]
[406969066,1772379031648,-1848.75756851,0.00012683,2]
[406969067,1772379031667,-458.96452941,0.00012683,2]
[406969068,1772379031677,-166.66,0.00012718,2]
[406969069,1772379031687,-917.94601125,0.00012781,2]
[406969070,1772379031708,-793.29285291,0.00012781,2]
[406969071,1772379031719,-276.79845384,0.00012781,2]
[406969072,1772379031729,-192.37996594,0.00012844,2]
[406969073,1772379031743,-107.62003406,0.00012844,2]
[406969074,1772379031752,-1200.0,0.00012844,2]
[406969075,1772379031762,-942.25869325,0.00012846,2]
[406969102,1772379037598,-3294.06130675,0.00012846,2]
[406969103,1772379037609,-166.66,0.00012974,2]
[406969104,1772379037618,-500.0,0.00013002,2]
[406969105,1772379037627,-2407.72,0.00013002,2]
[406969106,1772379037636,-217.11483197,0.00013091,2]
[406969107,1772379037645,-500.0,0.00013094,2]
[406969108,1772379037654,-208.8,0.00013115,2]
[406969109,1772379037663,-12316.36,0.00013191,2]
[406969110,1772379037683,-166.66,0.00013231,2]
[406969111,1772379037705,-2179.29328444,0.00013276,2]
[406969112,1772379037716,-363.21554741,0.00013395,2]
[406969113,1772379037726,-166.66,0.00013488,2]
[406969114,1772379037735,-150.0,0.00013519,2]
[406969115,1772379037744,-150.0,0.00013519,2]
[406969116,1772379037753,-150.0,0.00013519,2]
[406969117,1772379037763,-363.21554741,0.00013528,2]
[406969118,1772379037771,-150.0,0.00013574,2]
[406969119,1772379037781,-200.0,0.00013574,2]
[406969120,1772379037790,-150.0,0.00013587,2]
[406969121,1772379037799,-824.0,0.00013587,2]
[406969122,1772379037808,-2500.0,0.00013587,2]
[406969123,1772379037817,-1000.0,0.00013599,2]
[406969124,1772379037826,-388.75869274,0.000136,2]
[406969125,1772379037835,-155.23642035,0.000136,2]
[406969126,1772379037843,-6412.69444651,0.000136,2]
[406969127,1772379037857,-308.5174995,0.000136,2]
[406969128,1772379037869,-943.95867498,0.000136,2]
[406969129,1772379037883,-185.30703741,0.000136,2]
[406969130,1772379037892,-217.11483197,0.000136,2]
[406969131,1772379037906,-13328.15302574,0.000136,2]
[406969132,1772379037915,-1300.0,0.000136,4]
[406969133,1772379037924,-200.0,0.00013629,2]
[406969134,1772379037938,-363.21554741,0.0001366,2]
[406969135,1772379037947,-150.0,0.00013684,2]
[406969136,1772379037956,-150.0,0.00013684,2]
[406969137,1772379037966,-151.0,0.00013684,2]
[406969138,1772379037975,-55437.55911082,0.00013687,2]
[406969139,1772379037994,-1250.0,0.00013687,2]
[406969140,1772379038005,-903.93718342,0.00013687,2]
[406969241,1772379039895,-909.71469396,0.00013687,2]
[406969242,1772379039908,-892.18335078,0.00013687,2]
[406969243,1772379039921,-1902.07,0.00013687,2]
[406969244,1772379039935,-716067.41468944,0.00013687,2]
[406969245,1772379040005,-301.41707686,0.00013687,2]
[406969246,1772379040017,-336.0,0.00013687,2]
[406969247,1772379040028,-1666.732596,0.00013687,2]
[406969248,1772379040041,-4154.08136312,0.00013687,2]
[406969249,1772379040463,-6633.13592568,0.00013687,2]
[406969259,1772379042911,-33530.9817493,0.00013687,2]
[406969261,1772379042923,-1676014.77226062,0.00013687,2]
[406969263,1772379042938,-500.0,0.000137,2]
[406969264,1772379042949,-2700.0,0.000137,5]
[406969265,1772379042959,-500.0,0.000137,2]
[406969266,1772379042968,-500.0,0.000137,2]
[406969267,1772379042978,-520.55026084,0.000137,2]
[406969268,1772379042988,-500.0,0.000137,2]
[406969269,1772379042997,-150.0,0.00013739,2]
[406969270,1772379043008,-150.0,0.00013739,2]
[406969271,1772379043018,-379.70251463,0.00013767,2]
[406969272,1772379043027,-150.0,0.00013787,2]
[406969273,1772379043037,-150.0,0.00013787,2]
[406969274,1772379043047,-150.0,0.00013793,2]
[406969275,1772379043056,-500.0,0.00013793,2]
[406969276,1772379043066,-200.0,0.00013794,2]
[406969277,1772379043075,-200.0,0.00013794,2]
[406969278,1772379043086,-4100.0,0.000138,5]
[406969279,1772379043096,-250.0,0.00013842,2]
[406969280,1772379043106,-150.0,0.00013848,2]
[406969281,1772379043116,-500.0,0.00013848,2]
[406969282,1772379043126,-167.33799581,0.00013849,2]
[406969283,1772379043136,-2971.84693568,0.00013849,2]
[406969284,1772379043145,-13334.21590574,0.00013849,2]
[406969285,1772379043154,-151.0,0.00013859,2]
[406969286,1772379043164,-151.0,0.00013859,2]
[406969287,1772379043174,-151.0,0.00013859,2]
[406969288,1772379043184,-151.0,0.00013859,2]
[406969289,1772379043194,-151.0,0.00013859,2]
[406969290,1772379043203,-151.0,0.00013859,2]
[406969291,1772379043213,-151.0,0.00013859,2]
[406969292,1772379043223,-151.0,0.00013859,2]
[406969293,1772379043232,-151.0,0.00013859,2]
[406969294,1772379043242,-151.0,0.00013859,2]
[406969295,1772379043253,-151.0,0.00013859,2]
[406969296,1772379043264,-151.0,0.00013859,2]
[406969297,1772379043274,-151.0,0.00013859,2]
[406969298,1772379043284,-151.0,0.00013862,2]
[406969299,1772379043294,-12025.38313467,0.00013865,2]
[406969300,1772379043304,-1000.0,0.00013867,2]
[406969301,1772379043464,-32891.4421,0.00013867,2]
[406969302,1772379043474,-5500.0,0.000139,5]
[406969303,1772379043483,-153.66172219,0.00013903,2]
[406969304,1772379043493,-500.0,0.00013903,2]
[406969305,1772379043502,-150.0,0.00013922,2]
[406969306,1772379043512,-5035.6045698,0.00013949,2]
[406969307,1772379043522,-6634.4073233,0.00013949,2]
[406969308,1772379043533,-133761.2638506,0.00013949,2]
[406969309,1772379043542,-7858.487284,0.00013949,2]
[406969310,1772379043552,-151.0,0.00013949,2]
[406969311,1772379043562,-151.0,0.00013949,2]
[406969312,1772379043572,-151.0,0.00013949,2]
[406969313,1772379043582,-600.475399,0.00013949,2]
[406969314,1772379043592,-498.116459,0.00013949,2]
[406969315,1772379043602,-600.475399,0.00013949,2]
[406969316,1772379043612,-498.116459,0.00013949,2]
[406969317,1772379043623,-600.475399,0.00013949,2]
[406969318,1772379043634,-498.116459,0.00013949,2]
[406969319,1772379043643,-600.475399,0.00013949,2]
[406969320,1772379043652,-498.116459,0.00013949,2]
[406969321,1772379043661,-151.0,0.00013949,2]
[406969322,1772379043670,-151.0,0.00013949,2]
[406969323,1772379043679,-139144.5570105,0.00013949,2]
[406969324,1772379043688,-151.0,0.00013949,2]
[406969325,1772379043703,-151.0,0.00013949,2]
[406969326,1772379043713,-151.0,0.00013949,2]
[406969327,1772379043722,-151.0,0.00013949,2]
[406969328,1772379043731,-157.447486,0.00013949,2]
[406969329,1772379043741,-500.0,0.00013957,2]
[406969330,1772379043750,-1844.40470485,0.00013958,2]
[406969331,1772379043759,-234.08,0.00013958,2]
[406969332,1772379043768,-151.0,0.00013967,2]
[406969333,1772379043779,-294.694375,0.00013967,2]
[406969334,1772379043789,-151.0,0.00013967,2]
[406969335,1772379043799,-151.0,0.00013967,2]
[406969336,1772379043809,-151.0,0.00013967,2]
[406969337,1772379043819,-151.0,0.00013967,2]
[406969338,1772379043828,-151.0,0.00013967,2]
[406969339,1772379043839,-151.0,0.00013967,2]
[406969340,1772379043849,-200.0,0.00013967,2]
[406969341,1772379043865,-500.0,0.00014012,2]
[406969342,1772379043874,-4000.0,0.00014067,2]
[406969343,1772379043884,-500.0,0.00014067,2]
[406969344,1772379043893,-7850.47765839,0.00014078,2]
[406969345,1772379043906,-13328.15302569,0.00014078,2]
[406969346,1772379043916,-420.0,0.00014088,2]
[406969347,1772379043925,-519.0,0.0001411,2]
[406969348,1772379043935,-500.0,0.00014122,2]
[406969349,1772379043944,-500.0,0.00014177,2]
[406969350,1772379043954,-700.0,0.00014229,2]
[406969351,1772379043963,-77746.49848454,0.0001423,2]
[406969352,1772379043973,-151.0,0.0001423,2]
[406969353,1772379043983,-151.0,0.0001423,2]
[406969354,1772379043992,-151.0,0.0001423,2]
[406969355,1772379044001,-151.0,0.0001423,2]
[406969356,1772379044010,-151.0,0.0001423,2]
[406969357,1772379044019,-151.0,0.0001423,2]
[406969358,1772379044029,-156.704488,0.0001423,2]
[406969359,1772379044038,-151.0,0.0001423,2]
[406969360,1772379044047,-151.0,0.0001423,2]
[406969361,1772379044058,-600.475399,0.0001423,2]
[406969362,1772379044068,-498.116459,0.0001423,2]
[406969363,1772379044078,-600.475399,0.0001423,2]
[406969364,1772379044087,-498.116459,0.0001423,2]
[406969365,1772379044096,-600.475399,0.0001423,2]
[406969366,1772379044106,-498.116459,0.0001423,2]
[406969367,1772379044117,-600.475399,0.0001423,2]
[406969368,1772379044127,-498.116459,0.0001423,2]
[406969369,1772379044136,-151.0,0.0001423,2]
[406969370,1772379044146,-151.0,0.0001423,2]
[406969371,1772379044157,-151.0,0.0001423,2]
[406969372,1772379044166,-500.0,0.00014231,2]
[406969373,1772379044178,-1000.0,0.00014248,2]
[406969374,1772379044188,-1000.0,0.00014248,2]
[406969375,1772379044198,-1000.0,0.00014248,2]
[406969376,1772379044210,-1000.0,0.00014248,2]
[406969377,1772379044219,-7789.46,0.00014258,2]
[406969378,1772379044229,-403.80456618,0.00014286,2]
[406969379,1772379044239,-250.70500425,0.00014306,2]
[406969380,1772379044249,-500.0,0.00014334,2]
[406969381,1772379044258,-500.0,0.00014334,2]
[406969382,1772379044268,-2264.8402324,0.00014335,2]
[406969383,1772379044277,-151.0,0.00014335,2]
[406969384,1772379044287,-151.0,0.00014335,2]
[406969385,1772379044297,-151.0,0.00014335,2]
[406969386,1772379044307,-151.0,0.00014335,2]
[406969387,1772379044317,-300.97816,0.00014335,2]
[406969388,1772379044328,-151.0,0.00014335,2]
[406969389,1772379044338,-171.10993119,0.00014366,2]
[406969390,1772379044347,-259.44228297,0.00014366,2]
[406969391,1772379044356,-160.8660825,0.00014366,2]
[406969392,1772379044365,-379.81357415,0.00014366,2]
[406969393,1772379044375,-289.26938955,0.00014366,2]
[406969394,1772379044384,-200.0,0.00014379,2]
[406969395,1772379044394,-2000.0,0.000144,2]
[406969396,1772379044403,-4000.0,0.00014402,2]
[406969397,1772379044413,-166.66,0.00014415,2]
[406969398,1772379044423,-150.0,0.00014426,2]
[406969399,1772379044432,-1562.70060769,0.000145,2]
[406969400,1772379044442,-544.0,0.00014521,2]
[406969401,1772379044451,-500.0,0.00014555,2]
[406969402,1772379044460,-500.0,0.00014555,2]
[406969403,1772379044470,-500.0,0.00014555,2]
[406969404,1772379044479,-500.0,0.00014555,2]
[406969405,1772379044492,-500.0,0.00014555,2]
[406969406,1772379044504,-500.0,0.00014555,2]
[406969407,1772379044515,-500.0,0.00014555,2]
[406969408,1772379044525,-500.0,0.00014555,2]
[406969409,1772379044535,-500.0,0.00014555,2]
[406969410,1772379044544,-252.59652868,0.00014555,2]
[406969411,1772379044553,-151.0,0.00014555,2]
[406969412,1772379044563,-155.983782,0.00014555,2]
[406969413,1772379044572,-600.475399,0.00014555,2]
[406969414,1772379044582,-498.116459,0.00014555,2]
[406969415,1772379044591,-600.475399,0.00014555,2]
[406969416,1772379044601,-498.116459,0.00014555,2]
[406969417,1772379044610,-600.475399,0.00014555,2]
[406969418,1772379044620,-498.116459,0.00014555,2]
[406969419,1772379044629,-600.475399,0.00014555,2]
[406969420,1772379044639,-498.116459,0.00014555,2]
[406969421,1772379044648,-7850.47765839,0.00014556,2]
[406969422,1772379044657,-13328.15302569,0.00014556,2]
[406969423,1772379044667,-1000.0,0.00014556,2]
[406969424,1772379044676,-443.46717804,0.00014556,2]
[406969425,1772379044685,-7994.0,0.00014616,2]
[406969426,1772379044695,-1000.0,0.00014692,2]
[406969427,1772379044705,-255.0,0.00014701,2]
[406969428,1772379044714,-4065.91226816,0.00014714,7]
[406969429,1772379044724,-4000.0,0.00014737,2]
[406969430,1772379044735,-151.0,0.00014737,2]
[406969431,1772379044745,-151.0,0.00014755,2]
[406969432,1772379044757,-151.0,0.00014755,2]
[406969433,1772379044768,-151.0,0.00014755,2]
[406969434,1772379044777,-774.99491044,0.00014796,2]
[406969435,1772379044788,-1052.59653977,0.00014796,2]
[406969436,1772379044798,-1500.0,0.00014796,2]
[406969437,1772379044809,-1314.1553363,0.00014796,2]
[406969438,1772379044818,-155.671451,0.00014796,2]
[406969439,1772379044828,-151.0,0.00014853,2]
[406969440,1772379044839,-2486.12,0.00014906,2]
[406969441,1772379044848,-342.058226,0.00014945,7]
[406969442,1772379044857,-1600.0,0.00014956,2]
[406969443,1772379044871,-166.66,0.00014986,2]
[406969444,1772379044881,-151.0,0.00015,2]
[406969445,1772379044893,-250.0,0.00015,2]
[406969446,1772379044903,-151.0,0.00015033,2]
[406969447,1772379044913,-7850.47765839,0.00015033,2]
[406969448,1772379044923,-13328.15302569,0.00015033,2]
[406969449,1772379044935,-900.0,0.00015068,2]
[406969450,1772379044945,-151.0,0.00015068,2]
[406969451,1772379044954,-151.0,0.00015068,2]
[406969452,1772379044964,-151.0,0.00015068,2]
[406969453,1772379044974,-151.0,0.00015068,2]
[406969454,1772379044983,-151.0,0.00015068,2]
[406969455,1772379044992,-151.0,0.00015068,2]
[406969456,1772379045002,-151.0,0.00015068,2]
[406969457,1772379045011,-151.0,0.00015068,2]
[406969458,1772379045020,-151.0,0.00015068,2]
[406969459,1772379045029,-151.0,0.00015068,2]
[406969460,1772379045039,-151.0,0.00015068,2]
[406969461,1772379045049,-151.0,0.00015068,2]
[406969462,1772379045059,-162.41,0.00015116,2]
[406969463,1772379045068,-2000.0,0.00015344,2]
[406969464,1772379045077,-199.69,0.00015372,2]
[406969465,1772379045087,-151.0,0.00015443,2]
[406969466,1772379045096,-600.475399,0.00015443,2]
[406969467,1772379045105,-498.116459,0.00015443,2]
[406969468,1772379045115,-600.475399,0.00015443,2]
[406969469,1772379045124,-498.116459,0.00015443,2]
[406969470,1772379045133,-600.475399,0.00015443,2]
[406969471,1772379045142,-498.116459,0.00015443,2]
[406969472,1772379045152,-600.475399,0.00015443,2]
[406969473,1772379045163,-498.116459,0.00015443,2]
[406969474,1772379045175,-587.0,0.00015452,2]
[406969475,1772379045186,-151.0,0.00015468,2]
[406969476,1772379045197,-151.17337405,0.00015468,2]
[406969477,1772379045206,-174.61919141,0.00015468,2]
[406969478,1772379045215,-578.20924308,0.00015468,2]
[406969479,1772379045225,-743.50770149,0.00015468,2]
[406969480,1772379045235,-257.91778498,0.00015468,2]
[406969481,1772379045246,-500.0,0.00015468,2]
[406969482,1772379045257,-500.0,0.00015468,2]
[406969483,1772379045266,-500.0,0.00015468,2]
[406969484,1772379045277,-500.0,0.00015468,2]
[406969485,1772379045286,-500.0,0.00015468,2]
[406969486,1772379045297,-500.0,0.00015468,2]
[406969487,1772379045307,-500.0,0.00015468,2]
[406969488,1772379045318,-500.0,0.00015468,2]
[406969489,1772379045329,-629.43618668,0.00015468,2]
[406969490,1772379045340,-250.0,0.00015468,2]
[406969491,1772379045349,-500.0,0.00015468,2]
[406969492,1772379045358,-250.0,0.00015468,2]
[406969493,1772379045367,-500.0,0.00015468,2]
[406969494,1772379045377,-250.0,0.00015468,2]
[406969495,1772379045386,-500.0,0.00015468,2]
[406969496,1772379045396,-250.0,0.00015468,2]
[406969497,1772379045405,-500.0,0.00015468,2]
[406969498,1772379045415,-644.79446246,0.00015468,2]
[406969499,1772379045424,-250.0,0.00015468,2]
[406969500,1772379045434,-500.0,0.00015468,2]
[406969501,1772379045445,-250.0,0.00015468,2]
[406969502,1772379045455,-250.0,0.00015468,2]
[406969503,1772379045464,-250.0,0.00015468,2]
[406969504,1772379045474,-500.0,0.00015468,2]
[406969505,1772379045483,-250.0,0.00015468,2]
[406969506,1772379045492,-500.0,0.00015468,2]
[406969507,1772379045501,-250.0,0.00015468,2]
[406969508,1772379045511,-250.0,0.00015468,2]
[406969509,1772379045619,-500.0,0.00015468,2]
[406969510,1772379045629,-250.0,0.00015468,2]
[406969511,1772379045638,-250.0,0.00015468,2]
[406969512,1772379045647,-250.0,0.00015468,2]
[406969513,1772379045657,-250.0,0.00015468,2]
[406969514,1772379045666,-500.0,0.00015468,2]
[406969515,1772379045676,-250.0,0.00015468,2]
[406969516,1772379045685,-500.0,0.00015468,2]
[406969517,1772379045694,-250.0,0.00015468,2]
[406969518,1772379045704,-250.0,0.00015468,2]
[406969519,1772379045715,-250.0,0.00015468,2]
[406969520,1772379045725,-500.0,0.00015468,2]
[406969521,1772379045737,-250.0,0.00015468,2]
[406969522,1772379045747,-250.0,0.00015468,2]
[406969523,1772379045757,-250.0,0.00015468,2]
[406969524,1772379045766,-250.0,0.00015468,2]
[406969525,1772379045776,-269.917619,0.00015468,2]
[406969526,1772379045785,-250.0,0.00015468,2]
[406969527,1772379045794,-250.0,0.00015468,2]
[406969528,1772379045803,-250.0,0.00015468,2]
[406969529,1772379045813,-151.0,0.00015468,2]
[406969530,1772379045822,-482.28228872,0.00015468,2]
[406969531,1772379045832,-151.0,0.00015468,2]
[406969532,1772379045842,-253.48474784,0.00015468,2]
[406969533,1772379045853,-151.0,0.00015468,2]
[406969534,1772379045865,-151.0,0.00015468,2]
[406969535,1772379045875,-500.0,0.00015468,2]
[406969536,1772379045884,-151.0,0.00015468,2]
[406969537,1772379045895,-500.0,0.00015468,2]
[406969538,1772379045906,-151.0,0.00015468,2]
[406969539,1772379045915,-500.0,0.00015468,2]
[406969540,1772379045925,-151.0,0.00015468,2]
[406969541,1772379045936,-500.0,0.00015468,2]
[406969542,1772379045946,-151.0,0.00015468,2]
[406969543,1772379045957,-500.0,0.00015468,2]
[406969544,1772379045967,-151.0,0.00015468,2]
[406969545,1772379045977,-500.0,0.00015468,2]
[406969546,1772379045986,-151.0,0.00015468,2]
[406969547,1772379045996,-500.0,0.00015468,2]
[406969548,1772379046006,-151.0,0.00015468,2]
[406969549,1772379046015,-500.0,0.00015468,2]
[406969550,1772379046024,-500.0,0.00015468,2]
[406969551,1772379046034,-151.0,0.00015468,2]
[406969552,1772379046044,-151.0,0.00015468,2]
[406969553,1772379046054,-500.0,0.00015468,2]
[406969554,1772379046063,-151.0,0.00015468,2]
[406969555,1772379046072,-500.0,0.00015468,2]
[406969556,1772379046082,-500.0,0.00015468,2]
[406969557,1772379046092,-250.0,0.00015468,2]
[406969558,1772379046101,-500.0,0.00015468,2]
[406969559,1772379046110,-310.95952093,0.00015468,2]
[406969560,1772379046120,-500.0,0.00015468,2]
[406969561,1772379046129,-500.0,0.00015468,2]